[Event "SWE-ch Masters Elite 2018"]
[Site "Ronneby"]
[Date "2018.07.08"]
[Round "9"]
[White "Malmstig, Erik"]
[Black "Rydstrom, Tom"]
[Result "0-1"]
[ECO "C54"]
[WhiteElo "2336"]
[BlackElo "2307"]
[Annotator "NA"]
[PlyCount "72"]
[EventDate "2018.06.30"]
[EventType "tourn"]
[EventCountry "SWE"]
[SourceTitle "playchess.com"]
[Source "ChessBase"]
[SourceQuality "1"]
[TimeControl "40/5400+30:1800+30"]

1. e4 {[%emt 0:00:00]} e5 {[%emt 0:00:00]} 2. Nf3 {[%emt 0:00:15]} Nc6 {[%emt 0:00:00]} 3. Bc4 {[%emt 0:00:08]} Bc5 {[%emt 0:00:15]} 4. c3 {[%emt 0:00:15]} Nf6 {[%emt 0:00:06]} 5. d3 {[%emt 0:00:07]} a6 {[%emt 0:00:43]} 6. Nbd2 {[%emt 0:00:46]} O-O {[%emt 0:01:16]} 7. Bb3 {[%emt 0:00:25]} Ba7 {[%emt 0:01:07]} 8. h3 {[%emt 0:03:46] LiveBook: 151 Games} d6 {[%emt 0:00:41]} 9. Nf1 {[%emt 0:01:29]} Ne7 {[%emt 0:04:50] C54: Italienische Partie (Hauptvariante)} 10. g4 {[%emt 0:06:25]} (10. Ng3 Ng6 11. O-O h6 12. d4 Re8 13. Re1 b5 14. Be3 Bb7 15. Bc2 exd4 16. Nxd4 d5 17. Nb3 Bxe3 18. Rxe3 {½-½ (55) Miton,K (2584)-Bacrot,E (2725) Riadh 2017}) 10... Ng6 {[%emt 0:02:03]} 11. Ng3 {[%emt 0:02:07]} Re8 $146 {[%emt 0:00:43]} ({Vorgänger:} 11... d5 12. g5 dxe4 13. gxf6 exf3 14. fxg7 Kxg7 15. Qxf3 h6 16. Nh5+ Kh7 17. Nf6+ Kg7 18. Rg1 Be6 19. Bxe6 fxe6 20. Bxh6+ {1-0 (20) Bachmann,A (2593)-Lagno,K (2523) Berlin 2015}) 12. Be3 {[%emt 0:12:43]} Be6 {[%emt 0:17:44]} 13. Qe2 {[%emt 0:10:38]} d5 {[%emt 0:09:22]} 14. O-O-O {[%emt 0:16:51]} d4 {[%emt 0:02:15]} 15. cxd4 {[%emt 0:01:20]} Bxb3 {[%emt 0:00:47]} 16. axb3 {[%emt 0:00:13]} Bxd4 {[%emt 0:01:00]} 17. Nxd4 {[%emt 0:05:29]} exd4 {[%emt 0:00:13]} 18. Bg5 {[%emt 0:01:22]} h6 {[%emt 0:01:45]} 19. Bd2 {[%emt 0:00:43]} a5 {[%emt 0:02:00]} 20. g5 {[%emt 0:13:30]} hxg5 {[%emt 0:00:08]} 21. Bxg5 {[%emt 0:00:14]} a4 {[%emt 0:00:16]} 22. bxa4 {[%emt 0:01:53]} Rxa4 {[%emt 0:03:55]} 23. Kd2 {[%emt 0:06:55]} Re5 {[%emt 0:22:25]} 24. f4 $19 {[%emt 0:02:04]} ({White must play} 24. h4 $1 $15) 24... Rb5 {[%emt 0:10:40]} 25. Ke1 {[%emt 0:00:21]} Qd6 {[%emt 0:00:34]} 26. Nf5 {[%emt 0:05:11]} Qb4+ {[%emt 0:01:53]} 27. Kf2 {[%emt 0:00:26]} Ra2 {[%emt 0:02:51]} 28. Rd2 {[%emt 0:01:06]} Rxb2 {[%emt 0:00:46]} 29. Rhd1 {[%emt 0:00:12]} Rxd2 {[%emt 0:00:40]} 30. Rxd2 {[%emt 0:00:38]} Nh7 {[%emt 0:10:00]} 31. Rc2 {[%emt 0:00:42]} Qb1 {[%emt 0:00:12]} 32. Nxd4 {[%emt 0:03:09]} Nxg5 {[%emt 0:00:18]} 33. fxg5 {[%emt 0:01:38]} Rxg5 {[%emt 0:00:11]} 34. Nf3 {[%emt 0:01:22]} Rg2+ {[%emt 0:00:12]} 35. Kxg2 {[%emt 0:00:18]} Nf4+ {[%emt 0:00:03]} 36. Kf2 {[%emt 0:00:18]} Nxe2 {[%emt 0:00:03]} 0-1

[Event "SWE-ch Masters Elite 2018"]
[Site "Ronneby"]
[Date "2018.07.08"]
[Round "9"]
[White "Furhoff, Johan"]
[Black "Landgren, Andreas"]
[Result "1-0"]
[ECO "C10"]
[WhiteElo "2332"]
[BlackElo "2278"]
[Annotator "NA"]
[PlyCount "65"]
[EventDate "2018.06.30"]
[EventType "tourn"]
[EventCountry "SWE"]
[SourceTitle "playchess.com"]
[Source "ChessBase"]
[SourceQuality "1"]
[TimeControl "40/5400+30:1800+30"]

1. e4 {[%emt 0:00:00]} e6 {[%emt 0:00:00]} 2. d4 {[%emt 0:00:00]} d5 {[%emt 0:00:00]} 3. Nd2 {[%emt 0:00:00]} dxe4 {[%emt 0:00:00]} 4. Nxe4 {[%emt 0:00:05]} Nd7 {[%emt 0:00:00]} 5. Nf3 {[%emt 0:00:52]} Ngf6 {[%emt 0:00:00]} 6. Bd3 {[%emt 0:00:35]} c5 {[%emt 0:00:14]} 7. O-O {[%emt 0:02:32]} cxd4 {[%emt 0:07:03] C10: Französische Verteidigung (Rubinstein-Variante)} 8. Nxd4 {[%emt 0:03:48] LiveBook: 51 Games} Nxe4 {[%emt 0:00:54]} 9. Bxe4 {[%emt 0:00:09]} Nf6 {[%emt 0:00:12]} 10. Bf3 {[%emt 0:04:36]} Be7 {[%emt 0:04:23]} 11. Nb5 {[%emt 0:07:46]} Qb6 $146 {[%emt 0:17:10]} ({Vorgänger:} 11... O-O $11 {remains equal.} 12. Bf4 Bd7 13. c4 Bc6 14. Qe2 Bxf3 15. Qxf3 {½-½ (32) Shirov,A (2706)-Anand,V (2770) Moscow 2001}) 12. c4 {[%emt 0:20:44]} O-O {[%emt 0:12:08]} 13. Be3 {[%emt 0:11:13]} Bc5 {[%emt 0:00:55]} 14. Bf4 {[%emt 0:00:48]} Ne8 {[%emt 0:12:01]} 15. Rb1 {[%emt 0:11:06]} a6 {[%emt 0:04:47]} 16. b4 {[%emt 0:08:14]} axb5 {[%emt 0:02:44]} 17. bxc5 {[%emt 0:00:39]} Qxc5 {[%emt 0:00:13]} 18. cxb5 {[%emt 0:00:46]} Qc4 $16 {[%emt 0:09:05]} 19. Qc1 {[%emt 0:04:47]} Qa4 {[%emt 0:08:07]} 20. Rd1 {[%emt 0:04:11]} Nf6 {[%emt 0:00:53]} 21. Be5 {[%emt 0:01:16]} Nd5 {[%emt 0:04:34]} 22. Bxd5 {[%emt 0:02:21]} exd5 {[%emt 0:00:10]} 23. Bxg7 {[%emt 0:00:03]} Kxg7 {[%emt 0:01:52]} 24. Qg5+ {[%emt 0:00:17]} Kh8 {[%emt 0:00:02]} 25. Qf6+ {[%emt 0:00:09]} Kg8 {[%emt 0:00:05]} 26. Rxd5 {[%emt 0:03:31]} Re8 {[%emt 0:07:39]} 27. Rg5+ {[%emt 0:00:20]} Kf8 {[%emt 0:00:02]} 28. Qd6+ {[%emt 0:00:08]} Re7 {[%emt 0:00:10]} 29. Qh6+ {[%emt 0:00:09]} Ke8 {[%emt 0:00:12]} 30. Rg8+ {[%emt 0:00:08]} Kd7 {[%emt 0:00:08]} 31. Qd2+ {[%emt 0:00:09]} Kc7 {[%emt 0:01:39]} 32. Qd8+ {[%emt 0:00:09]} Kb8 {[%emt 0:00:04]} 33. Qxc8+ 1-0

[Event "SWE-ch Masters Elite 2018"]
[Site "Ronneby"]
[Date "2018.07.08"]
[Round "9"]
[White "Ziegler, Ari"]
[Black "Lundin, Jan"]
[Result "1-0"]
[ECO "D26"]
[WhiteElo "2305"]
[BlackElo "2282"]
[Annotator "NA"]
[PlyCount "96"]
[EventDate "2018.06.30"]
[EventType "tourn"]
[EventCountry "SWE"]
[SourceTitle "playchess.com"]
[Source "ChessBase"]
[SourceQuality "1"]
[TimeControl "40/5400+30:1800+30"]

1. d4 {[%emt 0:00:00]} d5 {[%emt 0:00:09]} 2. c4 {[%emt 0:00:00]} dxc4 {[%emt 0:00:11]} 3. Nf3 {[%emt 0:00:00]} Nf6 {[%emt 0:00:47]} 4. e3 {[%emt 0:00:00]} e6 {[%emt 0:01:31]} 5. Bxc4 {[%emt 0:00:09]} c5 {[%emt 0:00:18]} 6. O-O {[%emt 0:00:14]} Nc6 {[%emt 0:00:53]} 7. Qe2 {[%emt 0:01:18]} a6 {[%emt 0:02:17]} 8. Rd1 {[%emt 0:00:11]} Qc7 {[%emt 0:02:55]} 9. Nc3 {[%emt 0:00:56]} Bd6 {[%emt 0:00:30] D28: Queen's Gambit Accepted: Classical main line: 7 Qe2 with early ...Nc6} 10. dxc5 {[%emt 0:00:32]} Bxc5 {[%emt 0:00:07]} 11. b3 {[%emt 0:00:09]} O-O {[%emt 0:01:51]} 12. Bb2 {[%emt 0:01:37] LiveBook: 3 Games} Rd8 $146 {[%emt 0:02:51]} ({Predecessor:} 12... Qe7 13. Bd3 Ba3 14. Bxa3 Qxa3 15. Ne4 Nd5 16. Rac1 Rd8 17. Bb1 h6 {1-0 (32) Andreikin,D (2708)-Timofeev,A (2549) Sochi 2017}) 13. Rac1 {[%emt 0:32:30]} Rxd1+ {[%emt 0:02:45]} 14. Rxd1 {[%emt 0:00:07]} Bd7 {[%emt 0:01:23]} 15. Ng5 {[%emt 0:05:41]} Bf8 {[%emt 0:19:46]} 16. Nce4 {[%emt 0:06:16]} Nxe4 {[%emt 0:01:04]} 17. Nxe4 {[%emt 0:00:08]} Ne7 {[%emt 0:09:08]} 18. Qg4 {[%emt 0:17:46]} Ng6 {[%emt 0:12:02]} 19. h4 {[%emt 0:01:37]} Bc6 {[%emt 0:06:50]} 20. Ng5 {[%emt 0:06:45]} Nh8 {[%emt 0:11:11]} 21. h5 {[%emt 0:10:35]} Re8 {[%emt 0:00:35]} 22. Ne4 {[%emt 0:06:43]} Bxe4 {[%emt 0:05:32]} 23. Qxe4 {[%emt 0:00:06]} b5 {[%emt 0:00:05]} 24. Be2 {[%emt 0:00:14]} f5 {[%emt 0:03:42]} 25. Qd4 {[%emt 0:01:38]} Nf7 {[%emt 0:01:55]} 26. Rc1 {[%emt 0:02:07]} Qa5 {[%emt 0:01:06]} 27. a4 {[%emt 0:03:08]} Rd8 {[%emt 0:06:15]} 28. Qc3 {[%emt 0:00:01]} Qb6 {[%emt 0:00:18]} 29. a5 {[%emt 0:01:15]} Qb8 {[%emt 0:01:22]} 30. Bf3 {[%emt 0:00:30]} e5 {[%emt 0:01:20]} 31. b4 {[%emt 0:00:46]} e4 {[%emt 0:00:42]} 32. Bd1 {[%emt 0:00:13]} Rd3 {[%emt 0:00:39]} 33. Qc6 {[%emt 0:00:36]} Qd8 {[%emt 0:01:12]} 34. Bd4 {[%emt 0:00:54]} Qh4 {[%emt 0:02:47]} (34... Qe7 {might work better.} 35. Rb1 (35. Qxa6 Qxb4 36. Bc2 Rxd4 $16) 35... Qh4) 35. Qe6 {[%emt 0:00:59]} Rd2 {[%emt 0:00:54]} 36. Qxf5 {[%emt 0:00:17]} Qe7 {[%emt 0:00:32]} 37. Bb3 {[%emt 0:00:16]} h6 {[%emt 0:00:25]} 38. g3 {[%emt 0:00:23]} Rd3 {[%emt 0:00:21]} 39. Bd5 {[%emt 0:00:21]} Rxd4 {[%emt 0:00:45]} 40. exd4 {[%emt 0:00:15]} e3 {[%emt 0:00:09]} 41. Qxf7+ {[%emt 0:31:37]} Qxf7 {[%emt 0:30:09]} 42. Bxf7+ {[%emt 0:00:06]} Kxf7 {[%emt 0:00:04]} 43. fxe3 {[%emt 0:00:06]} Bxb4 {[%emt 0:00:06]} 44. Rc6 {[%emt 0:00:05]} Bxa5 {[%emt 0:00:11]} 45. Rxa6 {[%emt 0:00:05]} Bd2 {[%emt 0:00:18]} 46. Kf2 {[%emt 0:00:03]} b4 {[%emt 0:00:12]} 47. Ke2 {[%emt 0:00:13]} Bc3 {[%emt 0:00:05]} 48. Kd3 {[%emt 0:00:16]} Ke8 $18 1-0

[Event "SWE-ch Masters Elite 2018"]
[Site "Ronneby"]
[Date "2018.07.08"]
[Round "9"]
[White "Logdahl, Harald"]
[Black "Wiedenkeller, Michael"]
[Result "1/2-1/2"]
[ECO "C08"]
[WhiteElo "2249"]
[BlackElo "2465"]
[Annotator "ChessBase"]
[PlyCount "56"]
[EventDate "2018.06.30"]
[EventType "tourn"]
[EventCountry "SWE"]
[SourceTitle "playchess.com"]
[Source "ChessBase"]
[SourceQuality "1"]
[TimeControl "40/5400+30:1800+30"]

1. e4 {[%emt 0:00:00]} e6 {[%emt 0:00:21]} 2. d4 {[%emt 0:00:04]} d5 {[%emt 0:00:12]} 3. Nd2 {[%emt 0:00:05]} c5 {[%emt 0:00:43]} 4. exd5 {[%emt 0:01:44]} exd5 {[%emt 0:00:19]} 5. Bb5+ {[%emt 0:00:11]} Bd7 {[%emt 0:00:21]} 6. Qe2+ {[%emt 0:00:05]} Be7 {[%emt 0:00:22]} 7. dxc5 {[%emt 0:00:06]} Nf6 {[%emt 0:00:12]} 8. Nb3 {[%emt 0:00:14]} O-O {[%emt 0:00:14]} 9. Be3 {[%emt 0:00:17]} Re8 {[%emt 0:00:38]} 10. Nf3 {[%emt 0:00:41]} a6 {[%emt 0:00:54]} 11. Bd3 {[%emt 0:00:22]} Ba4 {[%emt 0:00:32]} 12. Nfd4 {[%emt 0:00:33]} Nbd7 {[%emt 0:03:11]} 13. O-O-O {[%emt 0:02:21]} Bxb3 {[%emt 0:02:15]} 14. axb3 {[%emt 0:02:05]} Bxc5 {[%emt 0:07:29]} 15. Qf3 {[%emt 0:04:34]} Ne5 {[%emt 0:14:13]} 16. Qh3 {[%emt 0:00:37]} Nxd3+ {[%emt 0:01:51]} 17. Rxd3 {[%emt 0:00:13]} Qc8 {[%emt 0:03:21]} 18. Qxc8 {[%emt 0:01:57]} Raxc8 {[%emt 0:00:07]} 19. h3 {[%emt 0:00:15]} g6 {[%emt 0:06:12]} 20. Kb1 {[%emt 0:01:29]} Kg7 {[%emt 0:02:10]} 21. c3 {[%emt 0:03:52]} Ne4 {[%emt 0:04:31]} 22. Rc1 {[%emt 0:01:06]} a5 {[%emt 0:01:08]} 23. Rc2 {[%emt 0:00:30]} f6 {[%emt 0:01:53]} 24. Ka2 {[%emt 0:02:29]} f5 {[%emt 0:04:06]} 25. Bf4 {[%emt 0:26:55]} h6 {[%emt 0:07:36]} 26. f3 {[%emt 0:02:08]} Nf6 {[%emt 0:01:13]} 27. g4 {[%emt 0:07:00]} Bxd4 {[%emt 0:02:41]} 28. Rxd4 {[%emt 0:00:05]} g5 {[%emt 0:00:12]} 1/2-1/2

[Event "SWE-ch Masters Elite 2018"]
[Site "Ronneby"]
[Date "2018.07.08"]
[Round "9"]
[White "Lind, Jan-Olov"]
[Black "Lindh, Fredrik"]
[Result "1/2-1/2"]
[ECO "B30"]
[WhiteElo "2234"]
[BlackElo "2273"]
[Annotator "NA"]
[PlyCount "35"]
[EventDate "2018.06.30"]
[EventType "tourn"]
[EventCountry "SWE"]
[SourceTitle "playchess.com"]
[Source "ChessBase"]
[SourceQuality "1"]
[TimeControl "40/5400+30:1800+30"]

1. e4 {[%emt 0:00:00]} c5 {[%emt 0:00:00]} 2. Nf3 {[%emt 0:00:00]} Nc6 {[%emt 0:00:00]} 3. d3 {[%emt 0:00:00]} g6 {[%emt 0:00:00]} 4. g3 {[%emt 0:00:00]} Bg7 {[%emt 0:00:04]} 5. Bg2 {[%emt 0:00:00]} e5 {[%emt 0:00:15]} 6. O-O {[%emt 0:00:10]} Nge7 {[%emt 0:00:06]} 7. c3 {[%emt 0:00:22]} O-O {[%emt 0:00:22]} 8. a3 {[%emt 0:00:23]} d6 {[%emt 0:00:21]} 9. b4 {[%emt 0:00:23]} h6 {[%emt 0:02:40] LiveBook: 132 Games} 10. Nbd2 {[%emt 0:03:52]} Be6 {[%emt 0:01:28]} 11. Bb2 {[%emt 0:00:37]} Qd7 {[%emt 0:02:51]} 12. b5 {[%emt 0:02:48] A04: Holländisches System ohne Übergang in andere Systeme} (12. d4 exd4 13. cxd4 Bg4 14. Qb3 Nxd4 15. Nxd4 cxd4 16. Nf3 Nc6 17. b5 Na5 18. Qb4 Bxf3 19. Bxf3 b6 {½-½ (35) Demidov,M (2521)-Andreikin,D (2708) Sochi 2017}) 12... Na5 {[%emt 0:01:20]} 13. c4 {[%emt 0:01:46]} b6 {[%emt 0:01:42]} 14. Bc3 {[%emt 0:01:02]} Nb7 $146 {[%emt 0:03:03]} ({Vorgänger:} 14... Rad8 15. Re1 f5 16. exf5 Bxf5 17. Re3 Bg4 18. Rb1 {1-0 (36) Wilmes,F (1884)-Ritter,U (1813) GER email 2010}) 15. Ne1 {[%emt 0:08:25]} f5 {[%emt 0:08:57]} 16. f4 $11 {[%emt 0:04:33]} fxe4 {[%emt 0:15:08]} 17. dxe4 {[%emt 0:00:51]} Na5 {[%emt 0:08:14]} 18. Qe2 {[%emt 0:03:22]} 1/2-1/2